Cogmind - Beta 15 @@@ ROGUE MODE // 2025.06.30 @ 21:01:11 Player: Not_Jesus8 Result: Self-destructed Performance ------------- Evolutions (1) 500 Regions Visited (4) 800 Robots Destroyed (16) 80 Value Destroyed (240) 240 Prototype IDs (1) 20 Alien Tech Used (0) 0 Bonus (0) 0 TOTAL SCORE: 1640 Bonus ------- None Cogmind --------- Core Integrity 202/400 Matter 220/300 Energy 96/100 System Corruption 0% Temperature Cool (0) Movement Walking (120) Location -9/Mines Parts ------- > --- POWER (1) -------- (None) > --- PROPULSION (3) --- Carbon-fiber Leg Carbon-fiber Leg Carbon-fiber Leg > --- UTILITY (3) ------ Large Storage Unit Decoy Drone Bay (6/16) > --- WEAPON (2) ------- Hammer > --- INVENTORY (15) --- Carbon-fiber Leg Improved Terrain Scan Processor Improved Terrain Scan Processor Improved Terrain Scan Processor Improved Terrain Scan Processor Grenade Launcher Datajack Hammer Peak State ------------ > --- POWER ------------ (None) > --- PROPULSION ------- Carbon-fiber Leg Carbon-fiber Leg Carbon-fiber Leg > --- UTILITY ---------- Large Storage Unit Decoy Drone Bay > --- WEAPON ----------- Hammer > --- INVENTORY -------- Carbon-fiber Leg Improved Terrain Scan Processor Improved Terrain Scan Processor Improved Terrain Scan Processor Improved Terrain Scan Processor Grenade Launcher Datajack Hammer [Rating: 26] Favorites ----------- Power Ion Engine Engine Ion Engine Propulsion Compact Wheel Leg Carbon-fiber Leg Wheel Compact Wheel Utility Small Storage Unit Device Seismic Detector Storage Small Storage Unit Protection Light Armor Plating Weapon Hammer Ballistic Gun Heavy Assault Rifle Impact Weapon Hammer Build | -11 -10 -10 -9 -9 ------- Run | Yrd Mat Min Mat Min Slots Evolved 2 | . . . 2 . Power . | . . . . . Propulsion 1 | . . . 1 . Utility 1 | . . . 1 . Weapon . | . . . . . Parts Attached 16 | 4 3 . 7 2 Power 1 | 1 . . . . Engine 1 | 1 . . . . Core . | . . . . . Reactor . | . . . . . Propulsion 6 | 2 1 . 3 . Treads . | . . . . . Leg 3 | . . . 3 . Wheel 3 | 2 1 . . . Hover . | . . . . . Flight . | . . . . . Utility 5 | 1 1 . 2 1 Device 2 | . 1 . . 1 Storage 2 | 1 . . 1 . Processor . | . . . . . Hackware . | . . . . . Protection 1 | . . . 1 . Artifact . | . . . . . Weapon 4 | . 1 . 2 1 Energy Gun . | . . . . . Energy Cannon . | . . . . . Ballistic Gun 1 | . . . 1 . Ballistic Cannon . | . . . . . Launcher . | . . . . . Special Weapon . | . . . . . Impact Weapon 3 | . 1 . 1 1 Slashing Weapon . | . . . . . Piercing Weapon . | . . . . . Special Melee Weapon . | . . . . . Unidentified Prototypes 1 | . . . . 1 Parts Lost 4 | . . 4 . . Power 1 | . . 1 . . Propulsion 2 | . . 2 . . Utility 1 | . . 1 . . Weapon . | . . . . . Highest Loss Streak 4 | . . 4 . . To Critical Strikes . | . . . . . Average Backups 6 | . 5 8 6 8 Power . | . . . . . Propulsion . | . . . . 1 Utility . | . . 1 1 4 Weapon 4 | . 4 6 3 2 Tool/Special . | . . . . . Unused Backups 10 | . . . 2 8 Power . | . . . . . Propulsion 1 | . . . . 1 Utility 4 | . . . . 4 Weapon 4 | . . . 2 2 Tool/Special 1 | . . . . 1 Average Slot Usage (%) 53 | . 76 39 23 66 Engine 6 | . 14 3 . . Leg 4 | . . . 7 33 Wheel 13 | . 28 6 . . Device 4 | . 9 1 . 5 Storage 11 | . 14 14 4 11 Impact Weapon 11 | . 10 14 11 11 Peak Build Rating 26 | 4 6 6 14 26 Average Rating 5 | 3 5 2 3 20 On Entrance 5 | . 4 6 2 13 Naked Turns 1 | . . . 1 . Heaviest Build 36 | 10 13 13 25 36 Greatest Support 45 | 26 32 32 45 45 Greatest Overweight (x) 2 | . . 2 2 . Average Overweight (x) . | . . 1 . . Largest Inventory Capacity 15 | 8 8 8 15 15 Average Capacity 8 | 7 8 8 7 15 Most Carried 11 | . 8 8 9 11 Average Carried 6 | . 5 8 6 8 Final Capacity 15 | 8 8 8 15 15 Final Carried 9 | . 8 8 9 8 Class Distribution -------------------- 100% | Mutant Dominant Class ---------------- Mutant | -10/Materials Mutant | -10/Mines Mutant | -9/Materials Mutant | -9/Mines Resources | -11 -10 -10 -9 -9 ----------- Run | Yrd Mat Min Mat Min Matter Collected 360 | 214 46 90 10 . Remotely . | . . . . . Salvage Created 373 | . 38 42 293 . Parts 16 | . 5 1 10 . Haulers Intercepted . | . . . . . Recyclers Shooed . | . . . . . Parts Field Recycled . | . . . . . Retrieved Matter . | . . . . . Parts Self-Destructed . | . . . . . Prevented . | . . . . . Kills | -11 -10 -10 -9 -9 ------- Run | Yrd Mat Min Mat Min Combat Hostiles Destroyed 13 | . 3 3 7 . Melee 10 | . 3 2 5 . Classes Destroyed 6 | . 1 . 5 . Builder 1 | . . . 1 . Recycler 1 | . . . 1 . Operator 1 | . . . 1 . Swarmer 10 | . 3 3 4 . Grunt 2 | . . . 2 . Sentry 1 | . . . 1 . Best Kill Streak 3 | . 2 2 3 . Combat Bots Only 3 | . 2 3 3 . Max Kills in Single Turn 1 | . 1 1 1 . Gunslinging . | . . . . . Exploded . | . . . . . Melee 1 | . 1 1 1 . Uniques/NPCs Destroyed . | . . . . . Combat | -11 -10 -10 -9 -9 -------- Run | Yrd Mat Min Mat Min Hostile Shots Fired 130 | . 15 65 50 . Missed 24 | . 1 13 10 . Hits 106 | . 14 52 40 . Projectile 106 | . 14 52 40 . Critical Strikes 2 | . . . 2 . Damage Taken 901 | . 115 410 376 . Core 404 | . 25 181 198 . Absorbed by Shields . | . . . . . Core Remaining (%) 58 | 100 . 17 . . Volleys Fired . | . . . . . Largest . | . . . . . Hottest . | . . . . . Shots Fired . | . . . . . Gun . | . . . . . Cannon . | . . . . . Launcher . | . . . . . Special . | . . . . . Kinetic . | . . . . . Thermal . | . . . . . Explosive . | . . . . . Electromagnetic . | . . . . . Robot Hit Streak . | . . . . . Robot Miss Streak . | . . . . . Penetration Max . | . . . . . Secondary Targets . | . . . . . Shots Hit Robots 39 | . 8 10 21 . Core Hits 5 | . 1 1 3 . Critical Kills 1 | . . . 1 . Critical Parts Destroyed 7 | . 2 1 4 . Critical Strikes 8 | . 2 1 5 . Smash 8 | . 2 1 5 . Melee Attacks 86 | . 28 18 40 . Impact 86 | . 28 18 40 . Slashing . | . . . . . Piercing . | . . . . . Sneak Attacks 5 | . 1 . 4 . Combat Hostiles . | . . . . . Follow-up Attacks . | . . . . . Damage Inflicted 1100 | . 233 268 599 . Guns . | . . . . . Cannons . | . . . . . Explosions . | . . . . . Melee 1100 | . 233 268 599 . Ramming . | . . . . . Kinetic . | . . . . . Thermal . | . . . . . Explosive . | . . . . . Electromagnetic . | . . . . . Impact 1100 | . 233 268 599 . Slashing . | . . . . . Piercing . | . . . . . Highest Corruption . | . . . . . Average Corruption . | . . . . . Corruption Purged . | . . . . . Corruption Blocked . | . . . . . Overload Shots . | . . . . . Overflow Damage 292 | . 71 33 188 . Projectiles . | . . . . . Explosions . | . . . . . Melee 292 | . 71 33 188 . Knockbacks 3 | . . 1 2 . Impact 3 | . . 1 2 . Kinetic . | . . . . . Secondary . | . . . . . Self-Inflicted Damage . | . . . . . Shots . | . . . . . Rammed . | . . . . . Targets Rammed . | . . . . . Kicked . | . . . . . Crushed . | . . . . . Highest Temperature 1 | . . . 1 . Average Temperature 1 | . . . 1 . Received Heat Transfer 126 | . . . 126 . Siege Activations . | . . . . . Martial Activations . | . . . . . Shielding Activations . | . . . . . Robots Disrupted . | . . . . . Combat Hostiles . | . . . . . Robots Corrupted 6 | . . 1 5 . Combat Hostiles 3 | . . 1 2 . Parts Fried 11 | . . 2 9 . Impact Corruptions 20 | . 4 4 12 . Robots Melted . | . . . . . Combat Hostiles . | . . . . . Parts Melted . | . . . . . Heat Transferred . | . . . . . Parts Sabotaged . | . . . . . Parts Stolen . | . . . . . Parts Stripped . | . . . . . Power Chain Reactions . | . . . . . Alert | -11 -10 -10 -9 -9 ------- Run | Yrd Mat Min Mat Min Maximum Alert Level . | . . . . . Low Security (%) 100 | 100 100 100 100 100 Level 1 . | . . . . . Level 2 . | . . . . . Level 3 . | . . . . . Level 4 . | . . . . . Level 5 . | . . . . . High Security . | . . . . . Max Security . | . . . . . Peak Influence 180 | . 68 45 180 63 Initial 63 | . . . . 63 Average 44 | . 16 13 117 49 Influence Increases 503 | . 139 85 279 . Destroy 0b10 Robot/C 260 | . 60 60 140 . Destroy 0b10 Robot/NC 15 | . . . 15 . Destroy Leader 50 | . 10 10 30 . Successful Hack 11 | . 11 . . . Destroy Structure 17 | . 13 . 4 . Lose Combat Pursuer 150 | . 45 15 90 . Influence Decreases 470 | . 139 85 115 131 Entered New Map 101 | . . . . 101 Time Decay 349 | . 139 65 115 30 Lost Part 20 | . . 20 . . Squads Dispatched 2 | . 1 . 1 . Investigation 1 | . 1 . . . Extermination . | . . . . . Reinforcement 1 | . . . 1 . Assault . | . . . . . Garrison . | . . . . . Intercept . | . . . . . Searches Triggered . | . . . . . Construction Impeded . | . . . . . Haulers Reinforced . | . . . . . Active Scanning Responses . | . . . . . Cargo Convoy Interrupts . | . . . . . Stealth | -11 -10 -10 -9 -9 --------- Run | Yrd Mat Min Mat Min Distress Signals 1 | . . . 1 . Communications Jammed . | . . . . . Distress Signals . | . . . . . Times Spotted 23 | . 5 4 14 . Peak Tracking Total 6 | . 3 3 6 . Tactical Retreats 6 | . 2 1 3 . Traps | -11 -10 -10 -9 -9 ------- Run | Yrd Mat Min Mat Min Traps Triggered 1 | . 1 . . . Indirectly . | . . . . . Trap Hack Attempts . | . . . . . Triggered . | . . . . . Disarmed . | . . . . . Reprogrammed . | . . . . . Reused . | . . . . . Traps Extracted . | . . . . . Installed . | . . . . . Triggered . | . . . . . Machines | -11 -10 -10 -9 -9 ---------- Run | Yrd Mat Min Mat Min Machines Disabled . | . . . . . Max in Single Turn . | . . . . . Machines Repaired . | . . . . . Machines Dismantled . | . . . . . Machines Sabotaged . | . . . . . Overloaded Fab Kills . | . . . . . Hacking | -11 -10 -10 -9 -9 --------- Run | Yrd Mat Min Mat Min Machines Accessed 5 | . 4 . . 1 Terminals 4 | . 4 . . . Fabricators . | . . . . . Repair Stations . | . . . . . Recycling Units . | . . . . . Scanalyzers . | . . . . . Garrison Access . | . . . . . Total Hacks 21 | . 20 . . 1 Successful 8 | . 7 . . 1 Failed 13 | . 13 . . . Catastrophic 3 | . 3 . . . Database Lockouts . | . . . . . Manual 20 | . 20 . . . Terminals 20 | . 20 . . . Fabricators . | . . . . . Repair Stations . | . . . . . Recycling Units . | . . . . . Scanalyzers . | . . . . . Garrison Access . | . . . . . Terminal Hacks 4 | . 3 . . 1 Part Schematic 1 | . 1 . . . Open Door 1 | . . . . 1 Terminal Index 1 | . 1 . . . Zone Layout 1 | . 1 . . . Fabricator Hacks . | . . . . . Repair Station Hacks . | . . . . . Recycling Unit Hacks . | . . . . . Scanalyzer . | . . . . . Garrison Access Hacks . | . . . . . Unauthorized Hacks 4 | . 4 . . . Terminals 4 | . 4 . . . Botnet 4 | . 4 . . . Fabricators . | . . . . . Repair Stations . | . . . . . Recycling Units . | . . . . . Scanalyzers . | . . . . . Garrison Access . | . . . . . Data Cores Recovered . | . . . . . Used . | . . . . . Hacking Detections 4 | . 4 . . . Full Trace Events 4 | . 4 . . . Feedback Events . | . . . . . Feedback Blocked . | . . . . . Robot Schematics Acquired . | . . . . . Robots Built . | . . . . . Authchips . | . . . . . Time . | . . . . . Total Robot Build Rating . | . . . . . Part Schematics Acquired 1 | . 1 . . . Parts Built . | . . . . . Authchips . | . . . . . Time . | . . . . . Total Part Build Rating . | . . . . . Parts Repaired . | . . . . . Time . | . . . . . Parts Recycled . | . . . . . Recycled Matter . | . . . . . Retrieved Matter . | . . . . . Retrieved Components . | . . . . . Parts Scanalyzed . | . . . . . Part Schematics Acquired . | . . . . . Parts Damaged . | . . . . . Bothacking | -11 -10 -10 -9 -9 ------------ Run | Yrd Mat Min Mat Min Used RIF Installer . | . . . . . Robots Hacked . | . . . . . Non-combat . | . . . . . Combat . | . . . . . Robot Hacks Applied . | . . . . . Relay Couplers Released . | . . . . . Fabnet Peak Effective % . | . . . . . Robots Rewired . | . . . . . Allies Hacked . | . . . . . Hacks Repelled . | . . . . . Allies | -11 -10 -10 -9 -9 -------- Run | Yrd Mat Min Mat Min Total Allies 1 | . . . . 1 Largest Group 1 | . . . . 1 Highest-Rated Group 31 | . . . . 31 Highest-Rated Ally 31 | . . . . 31 Total Orders 2 | . . . . 2 EXPLORE 1 | . . . . 1 RETURN 1 | . . . . 1 Ally Attacks . | . . . . . Total Damage . | . . . . . Kills . | . . . . . Allies Corrupted . | . . . . . Allies Melted . | . . . . . Intel | -11 -10 -10 -9 -9 ------- Run | Yrd Mat Min Mat Min Active Infowar (turns) 318 | . 303 15 . . Seismic 318 | . 303 15 . . Robot Analysis Total . | . . . . . Derelict Logs Recovered . | . . . . . Drone Launches 16 | . . . . 16 Drone Recoveries 6 | . . . . 6 Exploration | -11 -10 -10 -9 -9 ------------- Run | Yrd Mat Min Mat Min Turns Passed 1055 | 30 455 215 285 70 Spaces Moved 694 | 29 295 115 208 47 Core 279 | 4 . 103 172 . Treads . | . . . . . Legs 83 | . . . 36 47 Wheels 332 | 25 295 12 . . Hover . | . . . . . Flight . | . . . . . Fastest Speed 50 | 50 90 100 50 120 Average Speed 96 | 84 90 144 74 120 Slowest Speed 150 | 90 100 150 150 120 Overloaded Moves . | . . . . . Propulsion Burnouts . | . . . . . Robots Hopped . | . . . . . Potential Cave-ins . | . . . . . Cave-ins Triggered . | . . . . . Exploration Rate (%) 30 | 3 41 30 16 63 Regions Visited 4 Branch Regions 2 Pre-discovered Areas . | . . . . . Known Exits Taken . | . . . . . Unknown Exits Taken 4 | 1 1 1 1 . Scrap Searched 1 | . . 1 . . Spaces Dug 17 | . 13 . 4 . Terrain Destroyed 17 | . 13 . 4 . Melee 17 | . 13 . 4 . Projectile . | . . . . . AOE . | . . . . . Terrain Rammed . | . . . . . Walls Destroyed . | . . . . . Machines Disabled . | . . . . . Actions | -11 -10 -10 -9 -9 --------- Run | Yrd Mat Min Mat Min Total 929 | 32 435 132 268 62 Wait 113 | . 100 . 4 9 Move 690 | 28 294 114 207 47 Hop . | . . . . . Pick Up 16 | . 9 . 6 1 Fast Attach 11 | 4 1 . 6 . Attach 4 | . 1 . 1 2 Detach 1 | . . . . 1 Swap 1 | . 1 . . . Drop 7 | . 1 . 4 2 Fire . | . . . . . Melee 86 | . 28 18 40 . Ram . | . . . . . Kick . | . . . . . Crush . | . . . . . Escape Stasis . | . . . . . Rewire . | . . . . . Trap . | . . . . . Miscellaneous . | . . . . . Route ------- -11/Scrapyard -10/Materials -10/Mines -9/Materials -9/Mines (discovered 1 exit: [*Mat]) History --------- Turn | Location | Event 15 | -11/Scrapyard | Discovered new exit (range 16) 31 | -11/Scrapyard | Entered Materials 318 | -10/Materials | Build established: Mutant 452 | -10/Materials | Discovered new exit (range 14) 486 | -10/Materials | Entered Mines 515 | -10/Mines | Core integrity fell below 50% 543 | -10/Mines | Core integrity fell below 20% 575 | -10/Mines | Lost 4 parts (1p2n1u) 686 | -10/Mines | Discovered new exit (range 10) 701 | -10/Mines | Entered Materials 701 | -9/Materials | Evolved 2 slots: Propulsion x1, Utility x1 939 | -9/Materials | Discovered new exit (range 15) 986 | -9/Materials | Entered Mines 989 | -9/Mines | Received a Mining Laser from a helpful Derelict 1008 | -9/Mines | Found the Drone Emporium 1013 | -9/Mines | Found Prototype Device 1016 | -9/Mines | Identified Decoy Drone Bay 1028 | -9/Mines | Discovered new exit (range 13) 1056 | -9/Mines | Self-destructed Last Messages --------------- 01041_ Decoy Drone self-destructs. 01041_ Decoy Drone destroyed. 01041_ Decoy Drone retrieved by Decoy Drone Bay (no repairs). 01042_ Decoy Drone self-destructs. 01042_ Decoy Drone destroyed. 01042_ Decoy Drone retrieved by Decoy Drone Bay (no repairs). 01043_ Decoy Drone self-destructs. 01043_ Decoy Drone destroyed. 01044_ Decoy Drone self-destructs. 01044_ Decoy Drone destroyed. 01045_ Decoy Drone self-destructs. 01045_ Decoy Drone destroyed. 01046_ Decoy Drone self-destructs. 01046_ Decoy Drone destroyed. 01047_ Decoy Drone self-destructs. 01047_ Decoy Drone destroyed. 01048_ Decoy Drone self-destructs. 01048_ Decoy Drone destroyed. Map ----- +----------------------------------------------------+ | ##?????# #?## ##????# | | ### #??????# #??## %#?????## | | ##?### #??????# #???# #??????###### | | ##????## ##?????## ##??# #???????????## | | #??????####??????# % ##?# ############## | | ?????????????????## ### | | ?????????????????## ########### ###### ## | | ????????????????## ###??????# #?????##?##### | | ????????????????# ##?????# #????????????? | | ????#########??## ####### #????????????? | | ????# #### #????????????? | | ????# ##########????????????? | | ????# ### % #???????######????????? | | ????# #?# #??????##""""##???????? | | ????# #?## ### ### ##??????#" "#???????? | | ????# #??### ###?# #?####???????#" "#??????## | | ????####????# ##### #??####??????## ##??????# | | ????????????# %#### ##?????### ###?????## | | ????????????####### % #?????# X #????## | | ??????????????????###### #????## ##???# | | ???????????????????????# #????# ##### | | ???????????????????????## #????# | | ???????????????????????## ##???## | | ??????????????????????## ##???### ## ### | | ????????????????????### %####??# ### #?### | | ????????????????????# @ g ##?# #?## ##???? | | ???????????????????# < """ ### #??####????? | | ???????????????????##### """ #??????????? | | ???????????????????????## """ ######??????????? | | ????????????????????????## ###???????????????? | | ?????????????????????????#######?????????????????? | | ?????????????????????????????????????????????????? | | ?????????????????????????????????????????????????? | | | | | | | | | | | | | | | | | | | | | | | | | | | | | | | | | | | +----------------------------------------------------+ Best States ------------- Heat Dissipation 28 Energy Generation 10 Energy Capacity 250 Matter Stores 300 Matter Capacity 300 Sight Range 16 Terrain Scan Density 10 Armor Coverage 150 Evasion (%) 55 Item Schematics ----------------- Huge Storage Unit | -10/Materials | Hacked Robot Schematics ------------------ None Fabricated ------------ Nothing Repaired ---------- Nothing Alien Tech Used ----------------- None Achievements -------------- Release The Drones! Challenges ------------ None Game ------ Seed ArmorHeavyCompressor Manual? 0 Play Time 00:10:07 Cumulative 10.0 hours Start 2025.06.30 @ 20:52:40 End 2025.06.30 @ 21:01:11 Sessions 1 Manual Loads 0 Difficulty Rogue Special Mode None Game No. 12 Rogue 12 Adventurer 0 Explorer 0 Win Type - Total 1 Types 1/0/0/0/0/0/0/0/0/0 Lore% 28 Gallery% 18 Achievement% 24 Wizard Run 0 Options --------- Layout 1 ASCII 0 Keyboard 1 Movement Arrows Keybinds 0 Fullscreen 1 Font 16/SmallcapsGlow Map View 50x54 Zoom Use 0% Tactical HUD 1 Map Filters NONE Filters NONE Steam 1 RUN: 64979bcb-846e-4c0c-b793-921f3a0d1bf9